fUST/lending_fUST_20250320
["ID","MTS","AMOUNT","RATE_DAILY","PERIOD"]
[356453008,1742469485345,-150.0,0.00017993,120]
[356453009,1742469485368,-43.05046641,0.00018174,2]
[356453012,1742469543248,-193.05046641,0.00017992,2]
[356453013,1742469543273,-31.4888688,0.00018174,2]
[356453014,1742469549959,-197.0,0.00017992,2]
[356453016,1742469663163,-27.53933521,0.00017992,2]
[356453017,1742469663190,-186.31569258,0.00018174,2]
[356453018,1742469738047,-206.01159091,0.000259,4]
[356453020,1742469769877,-197.0,0.00017992,2]
[356453021,1742469769901,-3.0,0.00018175,2]
[356453023,1742469887749,-206.01159091,0.00018175,120]
[356453024,1742469897385,-69.98840909,0.00018175,120]
[356453025,1742469897409,-155.84220323,0.000231,3]
[356453033,1742470163145,-373.50997896,0.00018175,2]
[356453063,1742470231825,-184.94578544,0.00018175,2]
[356453064,1742470231835,-900.0,0.00018175,2]
[356453065,1742470231845,-900.0,0.00018175,2]
[356453066,1742470231855,-900.0,0.00018175,2]
[356453067,1742470231864,-900.0,0.00018175,2]
[356453068,1742470231873,-900.0,0.00018175,2]
[356453069,1742470231883,-900.0,0.00018175,2]
[356453070,1742470231892,-900.0,0.00018175,2]
[356453071,1742470231902,-900.0,0.00018175,2]
[356453072,1742470231911,-900.0,0.00018175,2]
[356453073,1742470231921,-900.0,0.00018175,2]
[356453074,1742470231930,-900.0,0.00018175,2]
[356453075,1742470231941,-1710.25347001,0.00018175,2]
[356453076,1742470231951,-142.370936,0.000231,3]
[356453077,1742470231961,-500.0,0.00030175,2]
[356453078,1742470231970,-24750.0,0.00030176,2]
[356453079,1742470231980,-151.99437,0.00031104,2]
[356453080,1742470231990,-202.17377757,0.00031188,2]
[356453081,1742470232000,-160.31519562,0.00031288,30]
[356453082,1742470232010,-255.75525481,0.00031288,2]
[356453083,1742470232019,-160.31519562,0.00031479,30]
[356453084,1742470232029,-202.17377756,0.00031689,2]
[356453085,1742470232039,-160.31519562,0.00031699,30]
[356453086,1742470232048,-246.6847108,0.00031889,4]
[356453087,1742470232058,-160.31519562,0.0003189,30]
[356453088,1742470232067,-160.31519562,0.0003211,30]
[356453089,1742470232077,-202.17377756,0.0003219,2]
[356453090,1742470232086,-271.3668746,0.00032192,30]
[356453091,1742470232096,-1589.0,0.000323,30]
[356453092,1742470232106,-160.31519562,0.00032329,30]
[356453093,1742470232115,-600.0,0.00032356,2]
[356453094,1742470232125,-3664.9785818,0.00032365,2]
[356453095,1742470232135,-643.91676429,0.00032371,2]
[356453096,1742470232144,-2495.38334375,0.00032372,20]
[356453097,1742470232153,-25.66874837,0.00032372,20]
[356453104,1742470237802,-67.79027659,0.00032372,20]
[356453158,1742470240109,-0.01586428,0.00032372,20]
[356453162,1742470240129,-290.30066989,0.00032372,20]
[356453205,1742470806777,-158.6305,0.000274,120]
[356453238,1742470990414,-219.05208396,0.000274,120]
[356453274,1742471432125,-36.31741604,0.000274,120]
[356453275,1742471432136,-500.0,0.00028,120]
[356453276,1742471432147,-500.0,0.000294,120]
[356453277,1742471432158,-500.0,0.0003,120]
[356453278,1742471432169,-500.0,0.0003,2]
[356453279,1742471432180,-500.0,0.0003,2]
[356453280,1742471432190,-166.4020947,0.0003,2]
[356453281,1742471432203,-269.32264253,0.0003,2]
[356453283,1742471437929,-64.27526277,0.0003,2]
[356453284,1742471437939,-1220.0,0.0003,11]
[356453285,1742471437949,-817.7939619,0.00031153,2]
[356453286,1742471437960,-400.0,0.00031337,2]
[356453287,1742471437970,-631.8422033,0.00031338,120]
[356453288,1742471437981,-500.0,0.000314,120]
[356453289,1742471437990,-500.0,0.00031596,2]
[356453290,1742471438000,-500.0,0.00031596,2]
[356453291,1742471438010,-450.0,0.000319,120]
[356453292,1742471438022,-500.0,0.00032,120]
[356453293,1742471438031,-168.478148,0.00032175,2]
[356453294,1742471438041,-252.00000002,0.0003219,2]
[356453295,1742471438051,-1559.98748621,0.00032211,2]
[356453296,1742471438061,-600.0,0.00032256,2]
[356453297,1742471438071,-1559.98748621,0.00032258,2]
[356453298,1742471438082,-2198.98714908,0.00032265,2]
[356453299,1742471438091,-500.0,0.00032274,2]
[356453300,1742471438102,-309.416395,0.00032274,2]
[356453301,1742471438112,-500.0,0.00032274,2]
[356453302,1742471438123,-426.65882273,0.00032274,2]
[356453303,1742471438133,-283.33725684,0.00032274,2]
[356453304,1742471438143,-274.32767497,0.00032274,2]
[356453305,1742471438153,-500.0,0.00032274,2]
[356453306,1742471438164,-595.39351938,0.00032274,2]
[356453307,1742471438174,-500.0,0.00032274,2]
[356453308,1742471438185,-500.0,0.00032274,2]
[356453309,1742471438195,-500.0,0.00032274,2]
[356453310,1742471438204,-500.0,0.00032274,2]
[356453311,1742471438215,-6189.43895,0.00032274,7]
[356453312,1742471438225,-432.97068059,0.00032275,60]
[356453313,1742471438314,-67.02931941,0.00032275,60]
[356453314,1742471438324,-500.0,0.00032275,60]
[356453315,1742471438334,-500.0,0.00032275,60]
[356453316,1742471438344,-500.0,0.00032275,60]
[356453317,1742471438353,-500.0,0.00032275,60]
[356453318,1742471438363,-500.0,0.00032275,60]
[356453319,1742471438373,-500.0,0.00032275,60]
[356453320,1742471438383,-500.0,0.00032275,60]
[356453321,1742471438392,-500.0,0.00032275,60]
[356453322,1742471438402,-500.0,0.00032275,60]
[356453323,1742471438412,-500.0,0.00032275,60]
[356453324,1742471438421,-500.0,0.00032275,60]
[356453325,1742471438431,-500.0,0.00032275,60]
[356453326,1742471438440,-225.32158592,0.00032275,60]
[356453336,1742471440288,-266.11534349,0.00032275,60]
[356453337,1742471440298,-1318.08465655,0.00032275,2]
[356453338,1742471440310,-1025.94066423,0.00032275,2]
[356453339,1742471440341,-280.0409419,0.00032275,2]
[356453344,1742471443191,-375.93373732,0.00032275,2]
[356453345,1742471443201,-1247.69167188,0.00032275,20]
[356453346,1742471443211,-10604.7082211,0.00032275,20]
[356453347,1742471443221,-222000.0,0.00032275,2]
[356453348,1742471443231,-1559.98748621,0.00032306,2]
[356453349,1742471443240,-622.2,0.00032311,2]
[356453350,1742471443249,-1559.98748621,0.00032353,2]
[356453351,1742471443259,-549.74678727,0.00032362,2]
[356453352,1742471443268,-645.2214,0.00032366,2]
[356453353,1742471443278,-38903.93982564,0.00032372,2]
[356453354,1742471443288,-295.032334,0.00032372,7]
[356453355,1742471443297,-295.032334,0.00032372,7]
[356453356,1742471443307,-151.0,0.00032372,7]
[356453357,1742471443316,-151.0,0.00032372,7]
[356453358,1742471443325,-164.033886,0.00032372,7]
[356453359,1742471443335,-164.033886,0.00032372,7]
[356453360,1742471443344,-295.032334,0.00032375,7]
[356453361,1742471443353,-295.032334,0.00032375,7]
[356453362,1742471443363,-151.0,0.00032375,7]
[356453363,1742471443373,-151.0,0.000324,7]
[356453364,1742471443382,-164.033886,0.000324,7]
[356453365,1742471443391,-164.033886,0.000324,7]
[356453366,1742471443401,-1559.98748621,0.000324,2]
[356453367,1742471443410,-669.0945918,0.00032421,2]
[356453368,1742471443419,-693.8510917,0.00032476,2]
[356453369,1742471443429,-2748.73393635,0.0003249,2]
[356453370,1742471443438,-210546.5,0.000325,30]
[356453371,1742471443448,-295.032334,0.000325,7]
[356453372,1742471443457,-295.032334,0.000325,7]
[356453373,1742471443467,-151.0,0.000325,7]
[356453374,1742471443476,-151.0,0.000325,7]
[356453375,1742471443485,-164.033886,0.000325,7]
[356453376,1742471443495,-164.033886,0.000325,7]
[356453377,1742471443504,-295.032334,0.00032511,7]
[356453378,1742471443513,-295.032334,0.00032511,7]
[356453379,1742471443522,-160.31519562,0.00032521,30]
[356453380,1742471443531,-295.032334,0.00032531,7]
[356453381,1742471443541,-295.032334,0.00032531,7]
[356453382,1742471443550,-719.52358209,0.00032531,2]
[356453383,1742471443560,-549.74678727,0.00032537,2]
[356453384,1742471443570,-20776.87511583,0.00032547,2]
[356453385,1742471443579,-295.032334,0.00032547,7]
[356453386,1742471443588,-295.032334,0.00032547,7]
[356453387,1742471443598,-151.0,0.00032547,7]
[356453388,1742471443607,-164.033886,0.00032547,7]
[356453389,1742471443616,-164.033886,0.00032547,7]
[356453390,1742471443626,-151.0,0.00032574,2]
[356453391,1742471443635,-746.14595463,0.00032586,2]
[356453392,1742471443644,-572.4118,0.00032612,30]
[356453393,1742471443653,-295.032334,0.00032612,7]
[356453394,1742471443662,-295.032334,0.00032612,7]
[356453395,1742471443671,-800.0,0.00032628,2]
[356453396,1742471443681,-773.75335495,0.00032641,2]
[356453397,1742471443690,-800.0,0.00032645,2]
[356453398,1742471443700,-800.0,0.00032654,2]
[356453399,1742471443709,-800.0,0.00032658,2]
[356453400,1742471443718,-800.0,0.00032673,2]
[356453401,1742471443727,-800.0,0.00032675,2]
[356453402,1742471443737,-168.47814796,0.00032679,2]
[356453403,1742471443746,-802.38222908,0.00032696,2]
[356453404,1742471443755,-800.0,0.00032699,2]
[356453405,1742471443765,-380.0,0.000327,120]
[356453406,1742471443775,-800.0,0.00032718,2]
[356453407,1742471443785,-151.0,0.00032718,7]
[356453408,1742471443796,-164.033886,0.00032718,7]
[356453409,1742471443808,-164.033886,0.00032718,7]
[356453410,1742471443818,-549.74678727,0.00032723,2]
[356453411,1742471443827,-583.42834269,0.00032729,2]
[356453412,1742471443838,-800.0,0.00032732,2]
[356453413,1742471443847,-800.0,0.00032733,2]
[356453414,1742471443856,-295.032334,0.00032737,7]
[356453415,1742471443866,-295.032334,0.00032737,7]
[356453416,1742471443878,-160.31519562,0.0003274,30]
[356453417,1742471443889,-800.0,0.0003275,2]
[356453418,1742471443901,-832.07037156,0.00032751,2]
[356453419,1742471443911,-269.808,0.00032776,33]
[356453420,1742471443921,-161.929,0.00032776,33]
[356453421,1742471443931,-800.0,0.00032784,2]
[356453422,1742471443940,-295.032334,0.00032796,7]
[356453423,1742471443950,-295.032334,0.00032796,7]
[356453424,1742471443959,-800.0,0.00032797,2]
[356453425,1742471443968,-800.0,0.00032833,2]
[356453426,1742471443978,-800.0,0.00032845,2]
[356453427,1742471443988,-549.74678727,0.00032846,2]
[356453428,1742471443997,-800.0,0.00032848,2]
[356453429,1742471444007,-509.34307879,0.00032856,120]
[356453430,1742471444016,-274.13,0.00032856,120]
[356453431,1742471444028,-295.032334,0.00032856,7]
[356453432,1742471444039,-295.032327,0.00032856,7]
[356453433,1742471444048,-12458.93820146,0.00032856,7]
[356453434,1742471444058,-4749.794853,0.00032856,2]
[356453435,1742471444067,-151.0,0.00032856,7]
[356453436,1742471444077,-151.0,0.00032856,7]
[356453437,1742471444087,-164.033886,0.00032856,7]
[356453438,1742471444097,-164.033886,0.00032856,7]
[356453439,1742471444107,-164.033886,0.00032856,7]
[356453440,1742471444117,-164.033886,0.00032856,7]
[356453441,1742471444127,-160.0,0.00032856,7]
[356453442,1742471444136,-3848.22751089,0.00032866,2]
[356453443,1742471444147,-150.5,0.00032866,120]
[356453444,1742471444156,-866.87411357,0.00032867,2]
[356453445,1742471444166,-2557.3130136,0.0003287,30]
[356453446,1742471444175,-510.23281177,0.00032873,5]
[356453447,1742471444185,-500.0,0.00032873,5]
[356453448,1742471444194,-500.0,0.00032873,5]
[356453449,1742471444204,-500.0,0.00032873,5]
[356453450,1742471444214,-500.0,0.00032873,5]
[356453451,1742471444223,-509.19423908,0.00032873,5]
[356453452,1742471444233,-500.0,0.00032873,5]
[356453453,1742471444243,-1017.71159828,0.00032873,2]
[356453454,1742471444253,-151.0,0.00032873,7]
[356453455,1742471444262,-151.0,0.00032873,7]
[356453456,1742471444272,-164.033886,0.00032873,7]
[356453457,1742471444287,-164.033886,0.00032873,7]
[356453458,1742471444297,-164.033886,0.00032873,7]
[356453459,1742471444306,-164.033886,0.00032873,7]
[356453460,1742471444316,-20000.0,0.00032875,2]
[356453461,1742471444326,-203.649698,0.00032875,7]
[356453462,1742471444335,-164.033886,0.00032875,7]
[356453463,1742471444345,-164.033886,0.00032875,7]
[356453464,1742471444355,-4206.09,0.00032876,21]
[356453465,1742471444364,-502.26302919,0.00032876,21]
[356453466,1742471444375,-502.38280959,0.00032876,21]
[356453467,1742471444384,-541.94424603,0.00032876,21]
[356453468,1742471444394,-500.0,0.00032876,21]
[356453469,1742471444404,-534.63738483,0.00032876,21]
[356453470,1742471444414,-500.0,0.00032876,21]
[356453471,1742471444424,-500.0,0.00032876,21]
[356453472,1742471444434,-500.0,0.00032876,21]
[356453473,1742471444443,-500.0,0.00032876,21]
[356453474,1742471444454,-709.59,0.00032876,21]
[356453475,1742471444464,-500.0,0.00032876,21]
[356453476,1742471444474,-500.0,0.00032876,21]
[356453477,1742471444483,-500.0,0.00032876,21]
[356453478,1742471444493,-500.0,0.00032876,21]
[356453479,1742471444503,-500.0,0.00032876,21]
[356453480,1742471444513,-279.47032,0.00032876,21]
[356453481,1742471444523,-716.9,0.00032876,21]
[356453482,1742471444534,-500.0,0.00032876,21]
[356453483,1742471444543,-500.0,0.00032876,21]
[356453484,1742471444553,-500.0,0.00032876,5]
[356453485,1742471444564,-1041.79,0.00032876,21]
[356453486,1742471444573,-595.13104248,0.00032876,21]
[356453487,1742471444584,-500.0,0.00032876,21]
[356453488,1742471444593,-500.0,0.00032876,21]
[356453489,1742471444603,-500.0,0.00032876,21]
[356453490,1742471444613,-500.0,0.00032876,21]
[356453491,1742471444623,-500.0,0.00032876,21]
[356453492,1742471444632,-973.36,0.00032876,21]
[356453493,1742471444642,-500.0,0.00032876,21]
[356453494,1742471444651,-500.0,0.00032876,21]
[356453495,1742471444660,-1367.54,0.00032876,21]
[356453496,1742471444670,-500.0,0.00032876,21]
[356453497,1742471444679,-461.30641046,0.00032876,21]
[356453498,1742471444689,-500.0,0.00032876,21]
[356453499,1742471444698,-544.39,0.00032876,21]
[356453500,1742471444707,-500.0,0.00032876,21]
[356453501,1742471444717,-500.0,0.00032876,21]
[356453502,1742471444727,-500.0,0.00032876,21]
[356453503,1742471444736,-500.0,0.00032876,21]
[356453504,1742471444746,-500.0,0.00032876,21]
[356453505,1742471444756,-500.0,0.00032876,21]
[356453506,1742471444765,-641.53,0.00032876,21]
[356453507,1742471444775,-647.03702577,0.00032876,21]
[356453508,1742471444787,-500.0,0.00032876,21]
[356453509,1742471444801,-574.76,0.00032876,21]
[356453510,1742471444811,-500.0,0.00032876,21]
[356453511,1742471444820,-500.0,0.00032876,21]
[356453512,1742471444831,-500.0,0.00032876,21]
[356453513,1742471444841,-160.0,0.00032876,7]
[356453514,1742471444851,-500.0,0.00032876,21]
[356453515,1742471444861,-1668.92,0.00032876,21]
[356453516,1742471444871,-500.0,0.00032876,21]
[356453517,1742471444882,-500.0,0.00032876,21]
[356453518,1742471444891,-500.0,0.00032876,21]
[356453519,1742471444901,-500.0,0.00032876,21]
[356453520,1742471444910,-500.0,0.00032876,21]
[356453521,1742471444919,-500.0,0.00032876,21]
[356453522,1742471444929,-500.0,0.00032876,21]
[356453523,1742471444939,-500.0,0.00032876,21]
[356453524,1742471444948,-500.0,0.00032876,21]
[356453525,1742471444958,-500.0,0.00032876,21]
[356453526,1742471444968,-500.0,0.00032876,21]
[356453527,1742471444978,-500.0,0.00032876,21]
[356453528,1742471444987,-500.0,0.00032876,21]
[356453529,1742471444998,-500.0,0.00032876,21]
[356453530,1742471445009,-336.24055973,0.00032876,21]
[356453531,1742471445019,-1185.64,0.00032876,21]
[356453532,1742471445028,-585.7,0.00032876,21]
[356453533,1742471445038,-500.0,0.00032876,21]
[356453534,1742471445049,-500.0,0.00032876,21]
[356453535,1742471445059,-500.0,0.00032876,21]
[356453536,1742471445068,-500.0,0.00032876,21]
[356453537,1742471445078,-500.0,0.00032876,21]
[356453538,1742471445087,-500.0,0.00032876,21]
[356453539,1742471445097,-500.0,0.00032876,21]
[356453540,1742471445107,-500.0,0.00032876,21]
[356453541,1742471445116,-500.0,0.00032876,21]
[356453542,1742471445125,-598.51,0.00032876,21]
[356453543,1742471445135,-500.0,0.00032876,21]
[356453544,1742471445144,-500.0,0.00032876,21]
[356453545,1742471445154,-500.0,0.00032876,21]
[356453546,1742471445164,-500.0,0.00032876,21]
[356453547,1742471445174,-500.0,0.00032876,21]
[356453548,1742471445183,-622.8,0.00032876,21]
[356453549,1742471445192,-550.65,0.00032876,21]
[356453550,1742471445202,-500.0,0.00032876,21]
[356453551,1742471445211,-1207.2,0.00032876,21]
[356453552,1742471445221,-524.88,0.00032876,21]
[356453553,1742471445230,-451.38352366,0.00032876,21]
[356453554,1742471445239,-640.99,0.00032876,21]
[356453555,1742471445249,-833.99388742,0.00032876,7]
[356453556,1742471445259,-500.0,0.00032876,21]
[356453557,1742471445268,-500.0,0.00032876,21]
[356453558,1742471445278,-500.0,0.00032876,21]
[356453559,1742471445287,-500.0,0.00032876,21]
[356453560,1742471445297,-597.78522653,0.00032876,21]
[356453561,1742471445306,-500.0,0.00032876,21]
[356453562,1742471445316,-528.37,0.00032876,21]
[356453563,1742471445326,-500.0,0.00032876,21]
[356453564,1742471445336,-1183.03,0.00032876,21]
[356453565,1742471445345,-607.15106966,0.00032876,21]
[356453566,1742471445355,-500.0,0.00032876,21]
[356453567,1742471445365,-500.0,0.00032876,21]
[356453568,1742471445376,-500.0,0.00032876,21]
[356453569,1742471445386,-2081.62,0.00032876,21]
[356453570,1742471445395,-500.0,0.00032876,21]
[356453571,1742471445404,-1109.02,0.00032876,21]
[356453572,1742471445414,-500.0,0.00032876,21]
[356453573,1742471445423,-500.0,0.00032876,21]
[356453574,1742471445435,-1184.74,0.00032876,21]
[356453575,1742471445445,-500.0,0.00032876,21]
[356453576,1742471445454,-500.0,0.00032876,21]
[356453577,1742471445464,-678.94,0.00032876,21]
[356453578,1742471445473,-500.0,0.00032876,21]
[356453579,1742471445483,-1285.5,0.00032876,21]
[356453580,1742471445492,-1199.97,0.00032876,21]
[356453581,1742471445501,-500.0,0.00032876,21]
[356453582,1742471445511,-500.0,0.00032876,21]
[356453583,1742471445520,-849.13,0.00032876,21]
[356453584,1742471445530,-500.0,0.00032876,21]
[356453586,1742471445540,-607.46,0.00032876,21]
[356453587,1742471445549,-500.0,0.00032876,21]
[356453588,1742471445559,-500.0,0.00032876,21]
[356453589,1742471445568,-712.51,0.00032876,21]
[356453590,1742471445578,-500.0,0.00032876,21]
[356453591,1742471445587,-500.0,0.00032876,21]
[356453592,1742471445596,-500.0,0.00032876,21]
[356453593,1742471445606,-1392.33,0.00032876,21]
[356453594,1742471445615,-500.0,0.00032876,21]
[356453596,1742471445624,-500.0,0.00032876,21]
[356453599,1742471445634,-1246.36,0.00032876,21]
[356453601,1742471445644,-500.0,0.00032876,21]
[356453602,1742471445653,-500.0,0.00032876,21]
[356453604,1742471445663,-500.0,0.00032876,7]
[356453606,1742471445672,-283.74712924,0.00032876,21]
[356453608,1742471445682,-500.0,0.00032876,21]
[356453610,1742471445691,-500.0,0.00032876,21]
[356453612,1742471445700,-898.76,0.00032876,21]
[356453613,1742471445709,-740.87,0.00032876,21]
[356453614,1742471445719,-500.0,0.00032876,21]
[356453615,1742471445729,-500.0,0.00032876,21]
[356453616,1742471445738,-500.0,0.00032876,21]
[356453617,1742471445748,-500.0,0.00032876,21]
[356453618,1742471445758,-500.0,0.00032876,21]
[356453619,1742471445767,-973.2,0.00032876,21]
[356453620,1742471445778,-2210.75,0.00032876,21]
[356453621,1742471445788,-835.94,0.00032876,21]
[356453622,1742471445799,-500.0,0.00032876,21]
[356453623,1742471445809,-500.0,0.00032876,21]
[356453624,1742471445819,-1176.62,0.00032876,21]
[356453625,1742471445828,-500.0,0.00032876,21]
[356453626,1742471445837,-500.0,0.00032876,21]
[356453627,1742471445847,-500.0,0.00032876,21]
[356453628,1742471445856,-500.0,0.00032876,21]
[356453629,1742471445865,-1340.89,0.00032876,21]
[356453630,1742471445877,-1369.56,0.00032876,21]
[356453631,1742471445886,-500.0,0.00032876,21]
[356453632,1742471445895,-500.0,0.00032876,21]
[356453633,1742471445904,-2207.43,0.00032876,21]
[356453634,1742471445913,-760.07,0.00032876,21]
[356453635,1742471445923,-677.73,0.00032876,21]
[356453636,1742471445932,-1287.3,0.00032876,21]
[356453637,1742471445942,-500.0,0.00032876,21]
[356453638,1742471445953,-500.0,0.00032876,21]
[356453639,1742471445963,-1734.31,0.00032876,21]
[356453640,1742471445974,-794.61,0.00032876,21]
[356453641,1742471445983,-2262.67,0.00032876,21]
[356453642,1742471445993,-456.74184667,0.00032876,21]
[356453643,1742471446006,-629.20209728,0.00032876,21]
[356453645,1742471446015,-500.0,0.00032876,21]
[356453647,1742471446024,-500.0,0.00032876,21]
[356453648,1742471446035,-500.0,0.00032876,21]
[356453649,1742471446044,-500.0,0.00032876,21]
[356453650,1742471446053,-500.0,0.00032876,21]
[356453651,1742471446063,-500.0,0.00032876,21]
[356453652,1742471446075,-894.24,0.00032876,21]
[356453653,1742471446085,-500.0,0.00032876,21]
[356453654,1742471446096,-1146.66,0.00032876,21]
[356453655,1742471446106,-1585.45,0.00032876,21]
[356453656,1742471446116,-728.21,0.00032876,21]
[356453658,1742471446125,-500.0,0.00032876,21]
[356453660,1742471446135,-797.32,0.00032876,21]
[356453662,1742471446144,-500.0,0.00032876,21]
[356453663,1742471446154,-500.0,0.00032876,21]
[356453664,1742471446164,-789.05,0.00032876,21]
[356453665,1742471446174,-552.61,0.00032876,21]
[356453666,1742471446184,-1628.17,0.00032876,21]
[356453667,1742471446194,-1529.52,0.00032876,21]
[356453668,1742471446204,-500.0,0.00032876,21]
[356453669,1742471446214,-500.0,0.00032876,21]
[356453670,1742471446224,-500.0,0.00032876,21]
[356453671,1742471446234,-500.0,0.00032876,21]
[356453672,1742471446243,-500.0,0.00032876,21]
[356453673,1742471446253,-500.0,0.00032876,21]
[356453674,1742471446263,-500.0,0.00032876,21]
[356453675,1742471446273,-1693.03,0.00032876,21]
[356453676,1742471446286,-500.0,0.00032876,21]
[356453677,1742471446296,-1216.53,0.00032876,21]
[356453678,1742471446306,-500.0,0.00032876,21]
[356453679,1742471446316,-500.0,0.00032876,21]
[356453680,1742471446327,-1832.33,0.00032876,21]
[356453681,1742471446336,-1002.57,0.00032876,21]
[356453682,1742471446346,-500.0,0.00032876,21]
[356453683,1742471446355,-500.0,0.00032876,21]
[356453684,1742471446364,-798.28,0.00032876,21]
[356453685,1742471446384,-569.19,0.00032876,21]
[356453686,1742471446393,-500.0,0.00032876,21]
[356453687,1742471446403,-500.0,0.00032876,21]
[356453688,1742471446414,-730.06,0.00032876,21]
[356453689,1742471446424,-1341.8,0.00032876,21]
[356453690,1742471446434,-500.0,0.00032876,21]
[356453691,1742471446444,-500.0,0.00032876,21]
[356453692,1742471446454,-737.22,0.00032876,21]
[356453693,1742471446464,-707.74,0.00032876,21]
[356453694,1742471446474,-511.09,0.00032876,21]
[356453695,1742471446484,-720.5,0.00032876,21]
[356453696,1742471446495,-2425.31,0.00032876,21]
[356453699,1742471446506,-525.66,0.00032876,120]
[356453701,1742471446516,-500.0,0.00032876,21]
[356453702,1742471446526,-584.07,0.00032876,21]
[356453703,1742471446540,-567.11,0.00032876,21]
[356453704,1742471446549,-1384.96,0.00032876,21]
[356453705,1742471446560,-500.0,0.00032876,21]
[356453706,1742471446570,-500.0,0.00032876,21]
[356453707,1742471446581,-500.0,0.00032876,21]
[356453708,1742471446592,-500.0,0.00032876,21]
[356453709,1742471446602,-1496.1,0.00032876,21]
[356453710,1742471446612,-2221.23,0.00032876,21]
[356453711,1742471446622,-1978.47,0.00032876,21]
[356453712,1742471446633,-508.8161439,0.00032876,21]
[356453713,1742471446643,-500.0,0.00032876,21]
[356453714,1742471446654,-3639.01,0.00032876,21]
[356453715,1742471446665,-1768.41,0.00032876,21]
[356453716,1742471446675,-500.0,0.00032876,14]
[356453717,1742471446686,-500.0,0.00032876,21]
[356453718,1742471446696,-500.0,0.00032876,21]
[356453719,1742471446706,-500.0,0.00032876,21]
[356453720,1742471446715,-3923.79800402,0.00032876,21]
[356453721,1742471446774,-77.88199598,0.00032876,21]
[356453723,1742471446787,-500.0,0.00032876,21]
[356453724,1742471446799,-1495.23,0.00032876,21]
[356453725,1742471446810,-683.09,0.00032876,21]
[356453726,1742471446820,-500.0,0.00032876,21]
[356453727,1742471446830,-2168.91,0.00032876,2]
[356453728,1742471446840,-500.0,0.00032876,21]
[356453729,1742471446851,-2168.91,0.00032876,2]
[356453730,1742471446861,-2168.91,0.00032876,2]
[356453731,1742471446871,-2168.91,0.00032876,2]
[356453732,1742471446883,-2168.91,0.00032876,2]
[356453733,1742471446893,-1087.26151445,0.00032876,2]
[356453734,1742471446906,-1081.64848555,0.00032876,2]
[356453735,1742471446916,-500.0,0.00032876,21]
[356453736,1742471446927,-2168.91,0.00032876,2]
[356453737,1742471446937,-2168.91,0.00032876,2]
[356453738,1742471446948,-2168.91,0.00032876,2]
[356453739,1742471446959,-226.80977755,0.00032876,2]
[356453740,1742471446973,-1942.10022245,0.00032876,2]
[356453741,1742471446983,-625.03600863,0.00032876,2]
[356453742,1742471447591,-1543.87399137,0.00032876,2]
[356453743,1742471447602,-2168.91,0.00032876,2]
[356453744,1742471447613,-2168.91,0.00032876,2]
[356453745,1742471447623,-614.37801222,0.00032876,21]
[356453746,1742471447634,-2168.91,0.00032876,2]
[356453747,1742471447645,-232.66799641,0.00032876,2]
[356453748,1742471532960,-300.0,0.00028,2]
[356453756,1742472396105,-777.6716762,0.00028,2]
[356453757,1742472621798,-154.4112854,0.00025205,30]
[356453772,1742472632460,-679.5887146,0.00025205,30]
[356453773,1742472632470,-922.3283238,0.00028,2]